bitfinex-derivatives/quotes_SOLF0:USTF0_20250409
["timestamp","ask_amount","ask_price","bid_price","bid_amount"]
[1744215227209,61.20773433,107.12,107.11,6.838e-05]
[1744215227514,9.3474,107.07,107.03,9.64513433]
[1744215227715,42.22,107.07,107.05,9.3481]
[1744215227902,42.22,107.07,107.04,9.64513433]
[1744215228102,51.86513433,107.1,107.05,9.64513433]
[1744215228301,51.86513433,107.1,107.06,9.3474]
[1744215228601,0.0646534,107.09,107.07,0.06747053]
[1744215229402,9.4102534,107.09,107.07,0.06747053]
[1744215229708,9.4102534,107.09,107.07,9.41417053]
[1744215229904,9.4102534,107.09,107.07,0.06747053]
[1744215230710,0.0646534,107.09,107.07,0.06747053]
[1744215231211,0.0646534,107.09,107.08,9.346]
[1744215232912,42.22,107.13,107.07,15.15510516]
[1744215233114,42.22,107.13,107.09,15.08763463]
[1744215233712,42.22,107.13,107.11,9.3428]
[1744215234014,42.29055862,107.13,107.11,9.40357378]
[1744215234208,51.63235862,107.13,107.11,9.40357378]
[1744215234413,42.29055862,107.13,107.11,9.40357378]
[1744215235111,42.29055862,107.13,107.12,9.3426]
[1744215235314,0.07055862,107.13,107.12,9.3426]
[1744215235517,42.29055862,107.13,107.11,0.06077378]
[1744215236012,51.63255862,107.13,107.11,0.06077378]
[1744215236710,42.29055862,107.13,107.11,9.40407378]
[1744215237318,51.63275862,107.13,107.11,0.06077378]
[1744215238010,42.29055862,107.13,107.11,0.06077378]
[1744215238818,51.63295862,107.13,107.11,0.06077378]
[1744215239519,51.63295862,107.13,107.11,9.40387378]
[1744215240109,42.29055862,107.13,107.11,9.40387378]
[1744215240505,42.29055862,107.13,107.12,9.3426]
[1744215241417,0.07055862,107.13,107.12,9.3426]
[1744215244018,42.29055862,107.13,107.11,0.06077378]
[1744215244226,42.29055862,107.13,107.06,21.72243463]
[1744215244411,2.4141,107.12,107.06,21.72243463]
[1744215244723,9.3442,107.11,107.08,9.3457]
[1744215244910,2.4141,107.12,107.08,9.3457]
[1744215245110,2.4141,107.12,107.06,19.52453463]
[1744215245312,0.06907252,107.11,107.09,9.40848761]
[1744215246128,0.06907252,107.11,107.1,9.3443]
[1744215246319,0.06907252,107.11,107.09,0.06408761]
[1744215246621,0.06907252,107.11,107.09,9.40888761]
[1744215246918,0.06907252,107.11,107.09,0.06408761]
[1744215247114,42.14,107.1,107.09,0.06408761]
[1744215247315,51.4843,107.1,107.09,0.06408761]
[1744215250918,51.4843,107.1,107.03,19.54143463]
[1744215250919,57.22763463,107.1,107.03,19.54143463]
[1744215251107,2.3757,107.09,107.01,17.41493463]
[1744215251820,2.3757,107.09,107.03,15.08763463]
[1744215252019,11.7213,107.09,107.06,9.3474]
[1744215252213,0.05907811,107.07,107.06,9.3474]
[1744215257614,42.14,107.1,107.05,79.44801262]
[1744215257816,11.7571,107.12,107.07,15.08763463]
[1744215258220,9.3435,107.11,107.09,9.3448]
[1744215258829,9.41235653,107.11,107.09,9.41535607]
[1744215259121,0.06885653,107.11,107.1,9.3443]
[1744215262433,46.8728,107.16,107.09,15.1581907]
[1744215262630,42.14,107.16,107.11,15.08763463]
[1744215263123,22.13293463,107.19,107.11,15.08763463]
[1744215263317,12.95377023,107.21,107.15,15.08763463]
[1744215263318,28.04140486,107.21,107.15,15.08763463]
[1744215263515,9.3361,107.2,107.15,15.08763463]
[1744215263727,0.06230632,107.19,107.17,0.06815448]
[1744215264127,0.06230632,107.19,107.17,9.40575448]
[1744215264325,9.39910632,107.19,107.17,0.06815448]
[1744215265031,0.06230632,107.19,107.17,0.06815448]
[1744215265631,42.20230632,107.19,107.17,0.06815448]
[1744215265831,9.3373,107.18,107.17,0.06815448]
[1744215266630,2.414,107.18,107.1,17.27493463]
[1744215266933,2.4113,107.17,107.1,17.27493463]
[1744215267124,9.3405,107.15,107.1,17.27493463]
[1744215267326,42.14,107.16,107.1,17.27493463]
[1744215267519,42.14,107.16,107.12,9.3425]
[1744215267735,0.0655531,107.14,107.12,9.40803973]
[1744215267935,0.0655531,107.14,107.12,0.06553973]
[1744215268134,9.4069531,107.14,107.12,0.06553973]
[1744215269024,9.4069531,107.14,107.12,9.40793973]
[1744215269833,0.0655531,107.14,107.12,9.40793973]
[1744215270835,9.4064531,107.14,107.12,9.40793973]
[1744215271036,0.0655531,107.14,107.12,0.06553973]
[1744215271240,42.14,107.13,107.12,0.06553973]
[1744215271529,51.4817,107.13,107.12,0.06553973]
[1744215271929,53.7566,107.13,107.12,0.06553973]
[1744215272131,9.3441,107.11,107.08,9.3453]
[1744215272330,59.50253463,107.13,107.06,17.35833463]
[1744215272736,9.3439,107.11,107.06,2.2707]
[1744215272940,9.3439,107.11,107.08,9.346]
[1744215273237,9.3435,107.11,107.06,2.2707]
[1744215273429,9.41097857,107.11,107.08,9.41006605]
[1744215273737,0.06747857,107.11,107.08,0.06456605]
[1744215274127,0.06747857,107.11,107.08,62.06456605]
[1744215274735,0.06747857,107.11,107.1,9.3443]
[1744215277943,44.2589,107.16,107.13,9.3414]
[1744215278137,53.5985,107.16,107.13,9.3414]
[1744215278329,44.2589,107.16,107.09,17.27533463]
[1744215278532,9.3403,107.15,107.12,9.3419]
[1744215279143,9.41115514,107.15,107.12,9.40298287]
[1744215279336,9.3409,107.14,107.12,9.40298287]
[1744215279843,0.07085514,107.15,107.12,0.06108287]
[1744215280346,15.08763463,107.14,107.12,0.06108287]
[1744215280554,51.4017,107.13,107.12,0.06108287]
[1744215285141,42.06,107.13,107.12,0.06108287]
[1744215285550,51.4017,107.13,107.12,0.06108287]
[1744215292363,42.06,107.13,107.12,0.06108287]
[1744215292866,51.4017,107.13,107.12,0.06108287]
[1744215296766,51.4017,107.13,107.07,4.4593]
[1744215296767,9.3443,107.1,107.07,4.4593]
[1744215296967,42.06,107.13,107.07,4.4593]
[1744215297868,9.40811899,107.11,107.09,0.07127356]
[1744215298067,0.06411899,107.11,107.09,0.07127356]
[1744215298371,9.3471,107.07,107.04,9.3489]
[1744215299563,9.3471,107.07,107.04,9.41014396]
[1744215299765,0.06956663,107.07,107.05,9.3486]
[1744215300373,9.41656663,107.07,107.04,9.41024396]
[1744215301473,0.06956663,107.07,107.04,0.06124396]
[1744215302055,9.41656663,107.07,107.05,9.3483]
[1744215302463,9.41656663,107.07,107.04,15.14887859]
[1744215302464,0.06956663,107.07,107.04,15.14887859]
[1744215303061,0.06956663,107.07,107.06,9.3478]
[1744215303257,0.06956663,107.07,107.04,0.06124396]
[1744215303464,42.14956663,107.07,107.04,0.06124396]
[1744215303958,15.08763463,107.06,107.04,0.06124396]
[1744215304161,9.3487,107.05,107.04,0.06124396]
[1744215306871,9.3481,107.06,107.04,0.06124396]
[1744215307067,42.14956663,107.07,107.04,0.06124396]
[1744215307470,0.06956663,107.07,107.06,15.08763463]
[1744215307974,0.06956663,107.07,107.06,24.43543463]
[1744215308472,42.0,107.11,107.07,9.3464]
[1744215309174,9.3449,107.1,107.07,9.3464]
[1744215309573,0.06286978,107.1,107.07,0.06711994]
[1744215310667,9.40746978,107.1,107.07,9.41341994]
[1744215311066,9.40746978,107.1,107.07,0.06711994]
[1744215311263,9.40746978,107.1,107.08,9.3457]
[1744215313660,0.06286978,107.1,107.09,9.3452]
[1744215313975,42.0,107.14,107.08,15.08763463]
[1744215314177,42.0,107.14,107.09,2.1787]
[1744215314372,4.7678,107.17,107.1,15.08763463]
[1744215314568,46.7478,107.17,107.1,15.08763463]
[1744215314876,9.3413,107.14,107.11,9.343]
[1744215315060,0.06027203,107.15,107.12,0.06896422]
[1744215315467,9.40037203,107.15,107.12,9.41086422]
[1744215316077,9.3408,107.14,107.12,9.41086422]
[1744215316373,0.06027203,107.15,107.12,9.41086422]
[1744215316574,0.06027203,107.15,107.12,15.15659885]
[1744215317174,70.02140486,107.2,107.14,15.08763463]
[1744215317175,9.3375,107.18,107.14,15.08763463]
[1744215317365,9.3375,107.18,107.14,17.44113463]
[1744215317572,41.98,107.2,107.14,17.44113463]
[1744215318276,9.3379,107.18,107.15,9.3396]
[1744215318478,0.06542072,107.18,107.16,0.07192414]
[1744215318673,41.98,107.17,107.1,15.08763463]
[1744215318871,9.3421,107.13,107.09,9.3447]
[1744215319480,9.3426,107.12,107.08,29.13573463]
[1744215319670,41.98,107.14,107.08,19.79003463]
[1744215319871,0.06799373,107.11,107.09,0.06382862]
[1744215320076,9.3443,107.1,107.09,0.06382862]
[1744215322680,9.3443,107.1,107.09,2.862e-05]
[1744215325278,24.43193463,107.1,107.09,2.862e-05]
[1744215325783,9.3443,107.1,107.09,2.862e-05]
[1744215327369,42.04799373,107.11,107.09,2.862e-05]
[1744215328484,0.06799373,107.11,107.09,2.862e-05]
[1744215328773,0.06799373,107.11,107.1,24.43193463]
[1744215329177,41.98,107.18,107.13,15.08763463]
[1744215329382,41.98,107.18,107.1,24.09568363]
[1744215329784,41.98,107.18,107.11,2.3766]
[1744215330375,9.3404,107.15,107.13,0.06819886]
[1744215330985,9.41054133,107.16,107.13,0.06819886]
[1744215331585,9.34,107.15,107.13,0.06819886]
[1744215332185,9.41044133,107.16,107.13,0.06819886]
[1744215332676,0.07094133,107.16,107.13,24.16388249]
[1744215332871,17.61487023,107.21,107.15,24.09568363]
[1744215333684,17.61487023,107.21,107.16,9.3386]
[1744215333881,17.61487023,107.21,107.15,24.09568363]
[1744215334090,9.3383,107.17,107.14,53.6517]
[1744215334277,41.98,107.19,107.14,44.3113]
[1744215334586,0.06003751,107.17,107.15,9.3396]
[1744215334971,0.06003751,107.17,107.14,44.37221341]
[1744215335287,0.06003751,107.17,107.15,9.3395]
[1744215336188,0.06003751,107.17,107.16,9.3391]
[1744215336486,12.95377023,107.21,107.15,24.09568363]
[1744215336676,12.95377023,107.21,107.18,9.337]
[1744215336881,12.95377023,107.21,107.15,24.09568363]
[1744215337388,12.95377023,107.21,107.16,9.3384]
[1744215337690,12.95377023,107.21,107.17,0.06593628]
[1744215337691,9.3369,107.19,107.17,0.06593628]
[1744215337991,0.06305869,107.2,107.17,9.40373628]
[1744215338175,9.39905869,107.2,107.17,9.40373628]
[1744215338887,9.39905869,107.2,107.18,9.3372]
[1744215339089,0.06305869,107.2,107.18,9.3372]
[1744215340288,9.39865869,107.2,107.17,9.40333628]
[1744215340490,0.06305869,107.2,107.17,0.06593628]
[1744215340893,0.06305869,107.2,107.17,24.16161991]
[1744215341090,0.06305869,107.2,107.17,26.41301991]
[1744215341285,27.9835,107.29,107.17,26.41301991]
[1744215341485,27.9835,107.29,107.17,2.31733628]
[1744215341486,24.09568363,107.25,107.17,2.31733628]
[1744215341685,41.88,107.24,107.17,2.2514]
[1744215341902,9.3351,107.21,107.18,9.3369]
[1744215342200,41.88,107.24,107.17,2.2514]
[1744215342406,0.06441089,107.21,107.18,0.06228346]
[1744215343598,41.94441089,107.21,107.18,0.06228346]
[1744215344492,51.27951089,107.21,107.18,9.39948346]
[1744215344798,9.3356,107.2,107.18,0.06228346]
[1744215345699,51.27961089,107.21,107.18,0.06228346]
[1744215345997,51.27961089,107.21,107.18,9.39948346]
[1744215346196,41.94441089,107.21,107.18,0.06228346]
[1744215346399,9.3361,107.2,107.18,0.06228346]
[1744215346901,66.04009452,107.21,107.18,0.06228346]
[1744215347197,68.38799452,107.21,107.18,0.06228346]
[1744215347393,9.3365,107.19,107.18,0.06228346]
[1744215348105,68.38799452,107.21,107.12,365.0]
[1744215348292,24.09568363,107.19,107.11,2.327]
[1744215348488,41.88,107.18,107.13,9.3412]
[1744215348792,9.3395,107.16,107.13,9.3412]
[1744215348993,4.4266,107.17,107.11,2.327]
[1744215349195,28.52228363,107.17,107.09,2.3099]
[1744215349400,0.06320855,107.15,107.13,0.05920112]
[1744215349598,41.94320855,107.15,107.13,0.05920112]
[1744215351200,9.3408,107.14,107.13,0.05920112]
[1744215353106,41.94320855,107.15,107.13,0.05920112]
[1744215354189,0.06320855,107.15,107.13,9.40040112]
[1744215354404,0.06320855,107.15,107.13,0.05920112]
[1744215354609,8.55e-06,107.15,107.13,24.17505377]
[1744215355004,8.55e-06,107.15,107.13,86.17505377]
[1744215355511,8.55e-06,107.15,107.14,9.3408]
[1744215355707,8.55e-06,107.15,107.14,11.7263]
[1744215356997,8.55e-06,107.15,107.14,2.3855]
[1744215357805,8.55e-06,107.15,107.14,11.7263]
[1744215358003,8.55e-06,107.15,107.14,9.3408]
[1744215361308,8.55e-06,107.15,107.13,0.05920112]
[1744215361503,9.3408,107.14,107.13,0.05920112]
[1744215362208,51.22040855,107.15,107.13,0.05920112]
[1744215362409,41.88000855,107.15,107.13,0.05920112]
[1744215362608,9.3408,107.14,107.13,0.05920112]
[1744215363011,41.88000855,107.15,107.13,0.05920112]
[1744215363211,51.22030855,107.15,107.13,0.05920112]
[1744215364610,9.3408,107.14,107.13,0.05920112]
[1744215365004,41.88000855,107.15,107.13,0.05920112]
[1744215365712,8.55e-06,107.15,107.14,9.3408]
[1744215365902,8.55e-06,107.15,107.13,0.05920112]
[1744215366309,8.55e-06,107.15,107.14,9.3408]
[1744215367505,8.55e-06,107.15,107.14,33.45665265]
[1744215368906,8.55e-06,107.15,107.14,9.3408]
[1744215370607,8.55e-06,107.15,107.13,9.40040112]
[1744215370818,8.55e-06,107.15,107.13,0.05920112]
[1744215371215,8.55e-06,107.15,107.14,9.3408]
[1744215372417,8.55e-06,107.15,107.13,9.40040112]
[1744215372712,8.55e-06,107.15,107.13,0.05920112]
[1744215373216,8.55e-06,107.15,107.13,9.40040112]
[1744215374017,8.55e-06,107.15,107.14,9.3408]
[1744215375824,8.55e-06,107.15,107.13,9.40030112]
[1744215376022,41.82000855,107.15,107.13,0.05920112]
[1744215376218,46.31050855,107.15,107.13,0.05920112]
[1744215376522,46.31050855,107.15,107.13,9.40040112]
[1744215376922,46.31050855,107.15,107.13,0.05920112]
[1744215377123,55.65050855,107.15,107.13,0.05920112]
[1744215378008,46.31050855,107.15,107.13,0.05920112]
[1744215378210,800.99587941,107.15,107.06,56.88537086]
[1744215378417,15.06537086,107.13,107.06,56.88537086]
[1744215378713,41.82,107.12,107.08,9.3455]
[1744215379212,9.3462,107.08,107.05,9.3484]
[1744215379412,41.82,107.07,107.04,15.06537086]
[1744215379613,41.82,107.08,107.05,0.06349562]
[1744215379818,41.88103809,107.08,107.05,0.06349562]
[1744215380020,51.22743809,107.08,107.05,9.41179562]
[1744215381727,41.88103809,107.08,107.06,9.3478]
[1744215382023,41.88103809,107.08,107.05,0.06349562]
[1744215382212,51.22713809,107.08,107.05,9.41169562]
[1744215382725,51.22713809,107.08,107.05,0.06349562]
[1744215383025,41.88103809,107.08,107.06,9.3473]
[1744215383624,51.22713809,107.08,107.06,9.3473]
[1744215383822,51.22713809,107.08,107.05,9.41179562]
[1744215384628,9.347,107.07,107.05,9.41179562]
[1744215384831,9.347,107.07,107.05,0.06349562]
[1744215385931,51.22753809,107.08,107.05,9.41209562]
[1744215386131,41.88103809,107.08,107.05,0.06349562]
[1744215386521,9.3478,107.06,107.05,0.06349562]
[1744215386722,41.88103809,107.08,106.99,65.98299201]
[1744215386918,65.98299201,107.07,106.99,41.84]
[1744215387125,9.3499,107.04,106.98,6.9729]
[1744215387330,65.98299201,107.07,106.98,6.9729]
[1744215387637,41.84,107.07,106.99,24.14299201]
[1744215387938,0.06028349,107.04,107.02,0.06506708]
[1744215388237,0.06028349,107.04,107.03,9.3504]
[1744215389233,9.40988349,107.04,107.02,9.41586708]
[1744215389440,0.06028349,107.04,107.02,0.06506708]
[1744215390747,0.06028349,107.04,107.03,9.3504]
[1744215391147,9.41018349,107.04,107.02,0.06506708]
[1744215391354,0.06028349,107.04,107.02,0.06506708]
[1744215391645,9.3504,107.03,107.02,0.06506708]
[1744215391846,0.06028349,107.04,107.02,0.06506708]
[1744215392241,9.41028349,107.04,107.02,0.06506708]
[1744215392541,0.06028349,107.04,107.02,0.06506708]
[1744215392843,9.41038349,107.04,107.02,0.06506708]
[1744215393443,9.3504,107.03,107.02,0.06506708]
[1744215393737,0.06028349,107.04,107.02,0.06506708]
[1744215394146,9.41028349,107.04,107.02,0.06506708]
[1744215394543,0.06028349,107.04,107.02,0.06506708]
[1744215395549,9.3504,107.03,107.02,0.06506708]
[1744215395752,0.06028349,107.04,107.02,0.06506708]
[1744215396145,0.06028349,107.04,107.02,9.41606708]
[1744215397051,0.06028349,107.04,107.02,0.06506708]
[1744215398036,0.06028349,107.04,107.03,9.3504]
[1744215401252,8.349e-05,107.04,107.03,24.43809699]
[1744215401644,8.349e-05,107.04,107.03,31.44309699]
[1744215402449,4.5003,107.1,107.08,9.3459]
[1744215402639,4.5003,107.1,107.03,7.005]
[1744215402842,9.3458,107.09,107.06,9.3471]
[1744215403051,9.3458,107.09,107.04,15.08769699]
[1744215403454,9.3458,107.09,107.07,9.3468]
[1744215403644,0.0642989,107.08,107.07,9.3468]
[1744215403846,0.0642989,107.08,107.05,0.06006255]
[1744215404457,0.0642989,107.08,107.06,15.08769699]
[1744215404653,0.0642989,107.08,107.07,9.3469]
[1744215406256,9.3413,107.14,107.11,9.3431]
[1744215406648,46.3524,107.15,107.1,15.08769699]
[1744215406849,46.3524,107.15,107.12,9.3423]
[1744215407252,41.8,107.15,107.12,9.3419]
[1744215407455,41.86847069,107.15,107.12,9.40436547]
[1744215407758,41.86847069,107.15,107.12,0.06246547]
[1744215408452,51.20887069,107.15,107.12,0.06246547]
[1744215408658,51.20887069,107.15,107.12,9.40456547]
[1744215409056,51.20887069,107.15,107.12,0.06246547]
[1744215409662,0.06847069,107.15,107.12,0.06246547]
[1744215409860,46.5084,107.18,107.12,0.06246547]
[1744215409861,41.78,107.18,107.13,24.10588477]
[1744215410063,46.558,107.21,107.16,9.3384]
[1744215410459,9.3365,107.19,107.16,9.3384]
[1744215411091,9.37996453,107.19,107.16,9.40656682]
[1744215411400,0.04346453,107.19,107.17,9.338]
[1744215411602,0.04346453,107.19,107.16,0.06816682]
[1744215412087,0.04346453,107.19,107.18,9.3373]
[1744215412692,95.99858094,107.25,107.21,9.3343]
[1744215413282,95.99858094,107.25,107.2,9.3352]
[1744215413677,9.3334,107.23,107.2,9.3352]
[1744215413870,9.3334,107.23,107.21,0.06787329]
[1744215414766,9.3326,107.24,107.21,9.40247329]
[1744215415161,41.78,107.25,107.21,0.06787329]
[1744215415361,9.3334,107.23,107.21,0.06787329]
[1744215416171,41.78,107.25,107.21,0.06787329]
[1744215416670,9.3338,107.22,107.21,0.06787329]
[1744215416865,41.78,107.25,107.21,0.06787329]
[1744215417170,9.3335,107.23,107.21,0.06787329]
[1744215417374,41.78,107.25,107.21,0.06787329]
[1744215417971,41.78,107.25,107.21,9.40247329]
[1744215418163,9.333,107.23,107.21,9.40247329]
[1744215418364,9.333,107.23,107.21,0.06787329]
[1744215418574,41.78,107.25,107.21,0.06787329]
[1744215419274,9.3338,107.22,107.21,0.06787329]
[1744215419471,48.5141,107.25,107.21,0.06787329]
[1744215419875,41.78,107.25,107.21,0.06787329]
[1744215420370,9.3323,107.24,107.21,0.06787329]
[1744215420782,41.78,107.25,107.21,0.06787329]
[1744215421074,9.3338,107.22,107.21,0.06787329]
[1744215421374,9.336,107.2,107.13,65.84588477]
[1744215421576,41.74,107.22,107.15,24.10588477]
[1744215421770,2.3193,107.23,107.15,24.10588477]
[1744215421976,9.3342,107.22,107.16,41.74]
[1744215422179,9.3342,107.22,107.19,9.3358]
[1744215422377,0.06787329,107.2,107.18,0.0640332]
[1744215422771,0.06787329,107.2,107.19,9.3365]
[1744215423699,0.06787329,107.2,107.18,9.4010332]
[1744215424196,0.06787329,107.2,107.18,0.0640332]
[1744215424415,0.06787329,107.2,107.19,9.3365]
[1744215424725,0.06787329,107.2,107.18,0.0640332]
[1744215425406,0.06787329,107.2,107.18,9.4008332]
[1744215425586,0.06787329,107.2,107.18,0.0640332]
[1744215426088,0.06787329,107.2,107.19,9.3365]
[1744215426481,41.74,107.25,107.18,0.0640332]
[1744215426683,9.3325,107.24,107.17,65.84588477]
[1744215427074,51.0717,107.25,107.23,9.3326]
[1744215427679,51.0717,107.25,107.23,9.39974069]
[1744215428274,51.0717,107.25,107.23,0.06714069]
[1744215429280,41.74,107.25,107.23,0.06714069]
[1744215430675,41.74,107.25,107.23,9.39974069]
[1744215430976,51.0716,107.25,107.23,0.06714069]
[1744215431684,51.0716,107.25,107.23,9.39974069]
[1744215431879,9.3321,107.24,107.23,0.06714069]
[1744215433182,9.3318,107.25,107.23,0.06714069]
[1744215433378,56.69915354,107.26,107.23,0.06714069]
[1744215433776,9.3321,107.24,107.23,0.06714069]
[1744215434379,2.2471,107.25,107.23,0.06714069]
[1744215434579,11.579,107.25,107.23,0.06714069]
[1744215434781,2.2471,107.25,107.23,0.06714069]
[1744215435185,9.3321,107.24,107.23,0.06714069]
[1744215435686,15.03915354,107.24,107.17,380.03915354]
[1744215435880,41.66,107.23,107.18,9.3367]
[1744215436797,9.3353,107.21,107.19,0.06297917]
[1744215438588,9.3356,107.2,107.19,0.06297917]
[1744215439189,9.3378,107.18,107.13,21.86035354]
[1744215439391,56.71915354,107.2,107.13,21.86035354]
[1744215439688,51.0161,107.2,107.17,9.3381]
[1744215440095,41.68,107.2,107.13,21.86035354]
[1744215440288,9.3368,107.19,107.13,21.86035354]
[1744215440493,0.0678571,107.18,107.16,0.06664161]
[1744215440798,0.0678571,107.18,107.17,9.3381]
[1744215441294,0.0678571,107.18,107.16,0.06664161]
[1744215442094,0.0678571,107.18,107.17,9.3382]
[1744215442301,43.8967,107.23,107.17,15.03915354]
[1744215442493,53.2297,107.23,107.21,9.3344]
[1744215442796,15.03915354,107.22,107.15,421.71915354]
[1744215443189,15.03915354,107.22,107.17,9.3378]
[1744215443387,0.06195048,107.2,107.17,0.06979778]
[1744215443584,0.06195048,107.2,107.19,9.3365]
[1744215444398,0.06195048,107.2,107.18,9.3368]
[1744215444713,9.39795048,107.2,107.18,9.3368]
[1744215446000,0.06195048,107.2,107.18,9.3368]
[1744215446299,0.06195048,107.2,107.19,9.3365]
[1744215446494,0.06195048,107.2,107.17,0.06979778]
[1744215446799,0.06195048,107.2,107.19,9.3365]
[1744215448492,5.048e-05,107.2,107.19,9.3365]
[1744215448701,5.048e-05,107.2,107.19,51.0165]
[1744215449904,5.048e-05,107.2,107.19,66.05565354]
[1744215450702,15.03915354,107.28,107.21,15.03915354]
[1744215450892,21.87255354,107.28,107.19,56.71915354]
[1744215451502,9.3308,107.26,107.23,9.3325]
[1744215451801,6.8334,107.28,107.22,0.06607345]
[1744215452102,9.3296,107.27,107.22,41.74607345]
[1744215452295,9.3296,107.27,107.22,41.68]
[1744215452491,59.07055354,107.29,107.23,0.06040229]
[1744215452691,9.3308,107.26,107.23,9.39290229]
[1744215453397,9.33,107.27,107.24,9.332]
[1744215454492,41.68,107.29,107.23,15.09955583]
[1744215454797,41.68,107.29,107.23,21.87515583]
[1744215454997,51.0081,107.29,107.26,9.3299]
[1744215455199,41.68,107.32,107.25,56.71915354]
[1744215455394,51.0056,107.32,107.29,9.3274]
[1744215455701,21.88595354,107.33,107.25,56.71915354]
[1744215455998,31.21095354,107.33,107.3,9.3265]
[1744215456301,56.69915354,107.35,107.29,0.07147381]
[1744215456700,9.3247,107.33,107.3,9.3263]
[1744215457102,9.3247,107.33,107.3,9.39309868]
[1744215457303,9.3239,107.34,107.31,9.3257]
[1744215457607,41.66,107.35,107.3,0.06679868]
[1744215457795,9.323,107.35,107.32,9.3247]
[1744215458199,9.323,107.35,107.32,9.38905142]
[1744215458398,4.5137,107.36,107.32,0.06435142]
[1744215458596,51.81715449,107.34,107.32,0.06435142]
[1744215459105,9.3243,107.33,107.32,0.06435142]
[1744215459490,24.35915354,107.33,107.25,4.4352]
[1744215459701,15.03915354,107.31,107.24,15.03915354]
[1744215460203,19.79125354,107.31,107.24,15.03915354]
[1744215460606,9.3929637,107.29,107.26,0.06885267]
[1744215460810,0.0646637,107.29,107.26,0.06885267]
[1744215461107,9.3295,107.27,107.26,0.06885267]
[1744215461601,41.6646637,107.29,107.26,0.06885267]
[1744215461816,9.3291,107.28,107.26,0.06885267]
[1744215462299,9.3295,107.27,107.26,0.06885267]
[1744215462799,50.9930637,107.29,107.26,0.06885267]
[1744215463093,41.6646637,107.29,107.26,0.06885267]
[1744215463905,9.329,107.28,107.26,0.06885267]
[1744215464101,41.6646637,107.29,107.26,0.06885267]
[1744215464408,0.0646637,107.29,107.27,9.3288]
[1744215464612,0.0646637,107.29,107.26,0.06885267]
[1744215465107,9.3927637,107.29,107.26,9.39865267]
[1744215465307,9.3927637,107.29,107.26,0.06885267]
[1744215465613,9.3927637,107.29,107.27,9.3294]
[1744215465614,0.0646637,107.29,107.27,9.3294]
[1744215466013,0.0646637,107.29,107.26,0.06885267]
[1744215466214,0.0646637,107.29,107.27,9.3287]
[1744215466611,0.0646637,107.29,107.26,0.06885267]
[1744215466810,0.0646637,107.29,107.27,9.3289]
[1744215467011,0.0646637,107.29,107.26,0.06885267]
[1744215467312,0.0646637,107.29,107.27,9.3289]
[1744215468415,0.0646637,107.29,107.28,9.3286]
[1744215469213,0.0646637,107.29,107.26,0.06885267]
[1744215469510,9.3928637,107.29,107.26,0.06885267]
[1744215469709,9.3928637,107.29,107.26,9.39885267]
[1744215470116,0.0646637,107.29,107.26,0.06885267]
[1744215470417,0.0646637,107.29,107.27,9.3291]
[1744215470618,0.0646637,107.29,107.26,0.06885267]
[1744215471918,0.0646637,107.29,107.28,9.3286]
[1744215472321,6.7948,107.35,107.27,86.05472878]
[1744215472524,6.7948,107.35,107.3,9.3264]
[1744215472821,6.7948,107.35,107.27,86.05472878]
[1744215473007,6.7948,107.35,107.31,9.3258]
[1744215473208,6.7948,107.35,107.27,88.36952878]
[1744215473408,6.7948,107.35,107.3,0.06060839]
[1744215473613,6.7948,107.35,107.3,9.38690839]
[1744215474720,6.7948,107.35,107.31,9.3259]
[1744215475630,6.7948,107.35,107.3,9.38710839]
[1744215475925,30.84952878,107.35,107.3,0.06060839]
[1744215476127,24.05472878,107.33,107.23,430.63472878]
[1744215476326,41.58,107.32,107.26,9.3297]
[1744215476824,41.58,107.32,107.27,9.329]
[1744215477222,0.06060839,107.31,107.28,0.06576311]
[1744215478225,0.06060839,107.31,107.28,9.39396311]
[1744215479827,9.38670839,107.31,107.28,0.06576311]
[1744215480127,0.06060839,107.31,107.28,0.06576311]
[1744215480928,0.06060839,107.31,107.29,9.3278]
[1744215481533,0.06060839,107.31,107.3,9.3269]
[1744215481927,0.06060839,107.31,107.28,0.06576311]
[1744215482232,0.06060839,107.31,107.29,9.3274]
[1744215482732,0.06060839,107.31,107.29,9.3278]
[1744215483030,0.06060839,107.31,107.28,0.06576311]
[1744215483430,0.06060839,107.31,107.3,9.3269]
[1744215483938,0.06060839,107.31,107.29,9.3273]
[1744215484240,0.06060839,107.31,107.28,0.06576311]
[1744215484548,9.38710839,107.31,107.28,0.06576311]
[1744215484837,15.0203516,107.29,107.21,4.483]
[1744215485039,9.3321,107.24,107.21,9.3342]
[1744215485234,41.58,107.25,107.19,15.0203516]